[Event "55th Biel Festival MTO 2022"]
[Site "Biel"]
[Date "2022.07.19"]
[Round "6.29"]
[White "Lou Vincent"]
[Black "Aziz, Husain"]
[Result "1/2-1/2"]
[ECO "D41"]
[WhiteElo "2200"]
[BlackElo "2380"]
[Annotator "TA"]
[PlyCount "73"]
[EventDate "2022.07.13"]
[EventType "swiss"]
[EventCountry "SUI"]
[SourceTitle "playchess.com"]
[Source "ChessBase"]
[SourceQuality "1"]
[TimeControl "40/5400+30:1800+30"]

{[%evp 26,73,26,0,18,9,35,0,0,0,0,0,-5,-22,-7,-41,0,-10,-10,0,0,0,6,13,2,2,9,8,21,1,61,70,112,75,155,148,1165,1137,29975,29976,29981,29981,29975,464,464,0,6644,0,431,0]} 1. d4 {[%emt 0:00:03]} d5 {[%emt 0:00:15]} 2. c4 {[%emt 0:00:05]} e6 {[%emt 0:00:14]} 3. Nf3 {[%emt 0:00:05]} Nf6 {[%emt 0:00:13]} 4. Nc3 {[%emt 0:00:05]} c5 {[%emt 0:00:21]} 5. cxd5 {[%emt 0:01:02]} Nxd5 {[%emt 0:00:24]} 6. e4 {[%emt 0:00:39]} Nxc3 {[%emt 0:00:09]} 7. bxc3 {[%emt 0:00:05]} cxd4 {[%emt 0:00:12]} 8. cxd4 {[%emt 0:00:06]} Bb4+ {[%emt 0:00:06]} 9. Bd2 {[%emt 0:00:07]} Bxd2+ {[%emt 0:00:07]} 10. Qxd2 {[%emt 0:00:08]} O-O {[%emt 0:00:09]} 11. Bc4 {[%emt 0:01:32]} Nd7 {[%emt 0:00:24]} 12. O-O {[%emt 0:00:48]} b6 {[%emt 0:00:06]} 13. Rfe1 {[%emt 0:01:46][%cal Bf1e1,Be1e3,Be3g3][%mdl 32]} Bb7 {[%emt 0:00:10]} 14. Rad1 {[%emt 0:02:07]} Rc8 {[%emt 0:00:10] D41: Queen's Gambit Declined: Semi-Tarrasch with 5 cxd5.} 15. Bd3 {[%emt 0:02:04]} h6 {[%emt 0:03:30]} 16. Re3 {[%emt 0:07:34] [#]} Nf6 $146 {[%emt 0:01:30] The position is equal.} ({Predecessor:} 16... Qc7 17. e5 Rfe8 18. Ne1 f5 19. exf6 Nxf6 20. Qe2 Qd6 21. Bg6 Re7 22. Bb1 Bd5 {1-0 (56) Flear,G (2493)-Eliet,N (2453) Guingamp 2008}) 17. Bb1 {[%emt 0:02:29]} Qc7 {[%emt 0:04:08]} 18. Ne5 {[%emt 0:06:02]} Rfd8 {[%emt 0:03:41][%cal Oc7e5]} 19. Qe2 {[%emt 0:06:13]} Qe7 {[%emt 0:11:32]} (19... b5 $5) 20. Rg3 {[%emt 0:03:17]} Kf8 {[%emt 0:05:39]} (20... Qb4 $5 {[%cal Rd8d4]} 21. Rb3 Qa4 $11) 21. h4 {[%emt 0:07:43]} Rc7 {[%emt 0:10:12]} 22. Rf3 {[%emt 0:04:32]} Kg8 {[%emt 0:17:41]} 23. g4 {[%emt 0:20:30]} Rdc8 {[%emt 0:03:27] Hoping for ...Rc1.} 24. g5 {[%emt 0:06:24]} hxg5 {[%emt 0:00:08]} 25. hxg5 {[%emt 0:00:22]} Nh7 {[%emt 0:13:17]} 26. g6 {[%emt 0:05:27]} fxg6 {[%emt 0:00:02]} 27. Nxg6 {[%emt 0:01:16]} Qe8 {[%emt 0:05:10]} (27... Qg5+ $11 28. Rg3 Qh6) 28. Rg3 $36 {[%emt 0:03:23][%mdl 2048] Black is under pressure. White is much more active.} Rc1 {[%emt 0:00:20]} 29. Kh2 {[%emt 0:03:22]} Nf8 {[%emt 0:01:50]} (29... Qf7 $142) 30. Ne5 $16 {[%emt 0:03:37] And now Qg4 would win.} Qe7 $2 {[%emt 0:02:33][%mdl 8192]} (30... Rxd1 $16 31. Qxd1 Rc7) 31. Qh5 $18 {[%emt 0:05:20] Threatening mate with Rh3.} Qf6 {[%emt 0:04:33]} 32. Ng4 $1 {[%emt 0:01:38][%cal Rg4f6]} Qf4 {[%emt 0:00:02]} 33. Nh6+ {[%emt 0:06:06]} Kh8 {[%emt 0:00:14]} 34. Nf7+ {[%emt 0:00:47]} (34. Nf5+ $142 Nh7 35. Rxc1 Rg8 36. Ne7 $1 Qxf2+ 37. Kh3 g5 38. Nxg8 Ba6 39. Bd3) 34... Kg8 {[%emt 0:00:07]} 35. Nh6+ {[%emt 0:00:38]} (35. Rxc1 $142 Qxf2+ 36. Kh3 Qxf7 37. Qxf7+ Kxf7 38. Rgc3) 35... Kh8 {[%emt 0:00:09]} 36. Nf7+ {[%emt 0:00:34]} (36. Nf5+ $142 Nh7 37. Rxc1 Qxc1 38. Qf7 (38. Rxg7 Qf4+ 39. Kh3 Rc3+ 40. Rg3 Rxg3+ 41. Nxg3 Kg7 $16)) 36... Kg8 {[%emt 0:00:04] [#]} 37. Nh6+ $2 {[%emt 0:00:29] Weighted Error Value: White=0.95/Black=0.52} (37. Rxc1 $1 $18 Qxf2+ 38. Kh3 Qxf7 39. Qxf7+ Kxf7 40. Rgc3) 1/2-1/2

[Event "55th Biel Festival MTO 2022"]
[Site "Biel"]
[Date "2022.07.19"]
[Round "6.30"]
[White "Matsumura, Cocoro"]
[Black "Haimovich, Tal"]
[Result "0-1"]
[ECO "C92"]
[WhiteElo "2043"]
[BlackElo "2372"]
[Annotator "TA"]
[PlyCount "114"]
[EventDate "2022.07.13"]
[EventType "swiss"]
[EventCountry "SUI"]
[SourceTitle "playchess.com"]
[Source "ChessBase"]
[SourceQuality "1"]
[TimeControl "40/5400+30:1800+30"]

{[%evp 20,114,34,35,27,27,28,22,24,14,78,60,64,62,48,41,53,68,80,6,88,0,0,-9,21,-14,45,20,26,43,20,27,25,0,0,0,0,0,1,0,3,-108,-116,-119,-110,-147,-147,-147,-153,-317,-307,-360,-345,-314,-202,-202,-202,-202,-196,-200,-201,-203,-203,-203,-202,-304,-281,-823,-864,-775,-745,-1469,-1175,-1839,-1757,-6002,-5308,-5405,-1594,-1861,-1427,-29964,-29967,-29969,-29972,-29972,-29973,-29976,-29975,-29977,-29973,-29978,-29979,-29978,-29979,-29964,-6187]} 1. e4 {[%emt 0:00:26]} e5 {[%emt 0:00:09]} 2. Nf3 {[%emt 0:00:06]} Nc6 {[%emt 0:00:04]} 3. Bb5 {[%emt 0:00:05][%cal Bf1b5,Bb5a4,Ba4b3][%mdl 32]} a6 {[%emt 0:00:04]} 4. Ba4 {[%emt 0:00:04]} Nf6 {[%emt 0:00:06]} 5. O-O {[%emt 0:00:07]} Be7 {[%emt 0:00:10]} 6. Re1 {[%emt 0:00:09]} b5 {[%emt 0:00:08]} 7. Bb3 {[%emt 0:00:05]} d6 {[%emt 0:00:26]} 8. c3 {[%emt 0:00:21]} O-O {[%emt 0:00:09]} 9. h3 {[%emt 0:00:04]} Bb7 {[%emt 0:00:12]} 10. d4 {[%emt 0:00:23]} Nd7 {[%emt 0:00:11]} 11. Nbd2 {[%emt 0:01:47][%cal Bb1d2,Bd2f1,Bf1g3,Bg3f5][%mdl 32]} exd4 {[%emt 0:00:42] C92: Closed Ruy Lopez: 9...Be6, Karpov and Flohr-Zaitsev Variations.} 12. cxd4 {[%emt 0:00:10]} Re8 {[%emt 0:00:39]} 13. Nf1 {[%emt 0:00:50]} Na5 {[%emt 0:00:39] The position is equal.} 14. Bc2 {[%emt 0:01:02]} Nf8 {[%emt 0:06:41]} (14... c5 $11) 15. Ng3 {[%emt 0:01:51] [#]} c5 $146 {[%emt 0:01:31]} ({Predecessor:} 15... Nc4 16. Nh2 c5 17. b3 Nb6 18. Bb2 cxd4 19. Bxd4 Nbd7 20. Nf5 Ne6 21. Ng4 Nxd4 22. Qxd4 {1-0 (55) Batelkova,L-Hromas,J Plzen 1995}) 16. Nf5 {[%emt 0:05:05]} Ng6 {[%emt 0:01:53]} 17. b3 {[%emt 0:05:51]} Bf6 {[%emt 0:05:24]} 18. Bb2 {[%emt 0:02:59]} Nc6 {[%emt 0:06:32]} 19. Rc1 {[%emt 0:10:23]} (19. e5 $16 dxe5 20. dxc5) 19... Rc8 {[%emt 0:07:25]} (19... Nxd4 $11 {keeps the balance.} 20. N3xd4 d5) 20. Ba1 {[%emt 0:04:13]} (20. e5 $1 $16 dxe5 21. dxc5) 20... cxd4 $11 {[%emt 0:11:13]} 21. N3xd4 {[%emt 0:01:07]} Nce7 {[%emt 0:01:51]} 22. Qd2 {[%emt 0:24:34]} Qb6 {[%emt 0:14:51]} (22... Nxf5 $11 23. Nxf5 Bg5) 23. a4 {[%emt 0:02:28]} Be5 {[%emt 0:06:35]} 24. Nxe7+ {[%emt 0:10:22]} Rxe7 {[%emt 0:06:47]} 25. Nf5 {[%emt 0:00:19]} Rec7 {[%emt 0:01:00] ...Bxa1 is the strong threat.} 26. Bxe5 {[%emt 0:03:18]} dxe5 {[%emt 0:00:41]} 27. axb5 {[%emt 0:02:05]} axb5 {[%emt 0:02:51]} 28. Bb1 {[%emt 0:01:32]} h6 {[%emt 0:07:45]} 29. Rxc7 {[%emt 0:02:01]} Qxc7 {[%emt 0:00:08]} 30. Nd6 {[%emt 0:01:14]} (30. Qe2 $11 {remains equal.}) 30... Rd8 $17 {[%emt 0:01:28]} 31. Rd1 {[%emt 0:01:44]} Nf4 {[%emt 0:02:56]} 32. Qc2 {[%emt 0:02:35]} Qxc2 {[%emt 0:06:17]} 33. Bxc2 {[%emt 0:00:11]} Bc6 {[%emt 0:00:03] And now ...g6 would win.} 34. f3 $2 {[%emt 0:01:24] This move loses the game for White.} (34. b4 $17) 34... g6 $1 $19 {[%emt 0:00:41]} 35. Rd2 {[%emt 0:05:48][%cal Od6c4] [#]} Ne6 $1 {[%emt 0:02:45]} 36. f4 {[%emt 0:00:26]} Nxf4 {[%emt 0:00:21] White must now prevent ...Ne6.} 37. Nc4 {[%emt 0:00:20] [#]} Rxd2 {[%emt 0:03:09]} 38. Nxd2 {[%emt 0:00:06][%mdl 4096] Endgame KBN-KBN} b4 {[%emt 0:02:05]} 39. Kf2 {[%emt 0:07:18]} Kf8 {[%emt 0:00:50]} 40. Nc4 {[%emt 0:00:35]} f6 {[%emt 0:00:19]} 41. h4 {[%emt 0:33:13]} Ke7 {[%emt 0:32:37]} 42. Ne3 {[%emt 0:00:31]} (42. g3 $142 Ne6 43. Nd2) 42... Ne6 {[%emt 0:00:00]} 43. Nd5+ $2 {[%emt 0:00:00]} (43. h5 gxh5 44. Nf5+ Kf8 45. Ke2) 43... Bxd5 {[%emt 0:00:00]} 44. exd5 {[%emt 0:00:00] KB-KN} Nd4 {[%emt 0:00:00]} 45. Bxg6 {[%emt 0:00:00]} Nxb3 {[%emt 0:00:00]} 46. Ke2 {[%emt 0:00:00]} Nc5 {[%emt 0:00:00]} 47. g4 {[%emt 0:00:00]} Kd6 {[%emt 0:00:00]} 48. Bf7 {[%emt 0:00:00]} Ne4 {[%emt 0:00:00]} (48... b3 $142 49. Kd2 e4) 49. Kd3 {[%emt 0:00:00]} Nf2+ {[%emt 0:00:00]} 50. Kc4 {[%emt 0:00:00]} Nxg4 {[%emt 0:00:00] Black mates.} 51. Kxb4 {[%emt 0:00:00]} Ne3 {[%emt 0:00:00]} 52. Kc3 {[%emt 0:00:00]} Nxd5+ {[%emt 0:00:00]} 53. Kd3 {[%emt 0:00:00]} f5 {[%emt 0:00:00]} 54. Ke2 {[%emt 0:00:00]} Nf4+ {[%emt 0:00:00]} 55. Kf3 {[%emt 0:00:00]} Ne6 {[%emt 0:00:00]} 56. Bg6 {[%emt 0:00:00]} e4+ {[%emt 0:00:00]} 57. Ke3 {[%emt 0:00:00]} Ke5 {[%emt 0:00:00] Weighted Error Value: White=0.70/Black=0.38} 0-1

[Event "55th Biel Festival MTO 2022"]
[Site "Biel"]
[Date "2022.07.19"]
[Round "6.31"]
[White "Papadiamandis, Elliot"]
[Black "Marentini, Marcel"]
[Result "1/2-1/2"]
[ECO "C42"]
[WhiteElo "2369"]
[BlackElo "2053"]
[Annotator "TA"]
[PlyCount "114"]
[EventDate "2022.07.13"]
[EventType "swiss"]
[EventCountry "SUI"]
[SourceTitle "playchess.com"]
[Source "ChessBase"]
[SourceQuality "1"]
[TimeControl "40/5400+30:1800+30"]

{[%evp 12,114,18,9,24,23,26,25,25,22,31,18,26,14,25,0,22,12,15,26,30,33,45,31,42,0,33,14,60,37,53,28,27,-38,-37,-80,-81,-85,-86,-97,-106,-100,-58,-56,-36,-50,-36,-102,-87,-113,-91,-100,0,0,0,0,0,-15,-6,-4,-8,-84,-77,-109,-109,-111,-109,-109,-109,-116,0,-66,0,-128,-131,-125,-118,-177,-202,-200,-211,-289,-205,-213,-209,-212,-87,-118,-105,-192,-196,-194,-33,-192,0,0,0,-397,0,0,0,-351,0,0,0]} 1. e4 {[%emt 0:00:17]} e5 {[%emt 0:00:29]} 2. Nf3 {[%emt 0:00:28]} Nf6 {[%emt 0:00:10]} 3. Nxe5 {[%emt 0:00:25]} d6 {[%emt 0:00:10]} 4. Nf3 {[%emt 0:00:12]} Nxe4 {[%emt 0:00:14]} 5. Nc3 {[%emt 0:00:09]} Nxc3 {[%emt 0:00:17]} 6. dxc3 {[%emt 0:00:12]} Be7 {[%emt 0:00:07]} 7. Be3 {[%emt 0:01:02]} Nc6 {[%emt 0:00:17] C42: Petroff Defence: 3 Nxe5 and unusual White 3rd moves.} 8. Bd3 {[%emt 0:00:52]} Be6 {[%emt 0:01:36]} 9. Qe2 {[%emt 0:00:49]} Qd7 {[%emt 0:01:58] White has an edge.} 10. O-O-O {[%emt 0:00:32]} O-O {[%emt 0:01:45]} 11. h3 {[%emt 0:00:10]} Rae8 {[%emt 0:02:04]} 12. Kb1 {[%emt 0:00:16]} Bd8 {[%emt 0:02:03] [#]} 13. Rhg1 $146 {[%emt 0:04:32]} ({Predecessor:} 13. Rhe1 a6 14. Qf1 Kh8 15. Nd4 Nxd4 16. Bxd4 Bf5 17. c4 Kg8 18. a3 Bxd3 19. Rxd3 {½-½ (32) Cheparinov,I (2699)-Ju,W (2572) Caleta 2018}) 13... Bf5 {[%emt 0:05:07]} 14. g4 {[%emt 0:01:21]} Bxd3 {[%emt 0:01:42]} 15. Qxd3 {[%emt 0:00:18]} Ne5 {[%emt 0:04:25]} 16. Nxe5 {[%emt 0:01:14]} Rxe5 {[%emt 0:00:09]} 17. f4 {[%emt 0:04:18]} Ree8 {[%emt 0:01:20]} 18. f5 {[%emt 0:03:45]} (18. Bxa7 b6 19. Qa6 Bh4 $17) 18... a6 {[%emt 0:23:46]} 19. Bd4 {[%emt 0:06:57]} f6 {[%emt 0:05:32]} (19... Qc6 $11 {is superior.}) 20. h4 {[%emt 0:08:20]} h6 {[%emt 0:01:00]} 21. Rdf1 {[%emt 0:01:02]} Qc6 {[%emt 0:02:27]} 22. g5 {[%emt 0:03:24]} (22. c4 $11) 22... fxg5 $15 {[%emt 0:05:25]} 23. hxg5 {[%emt 0:04:10]} Bxg5 {[%emt 0:06:47]} 24. f6 {[%emt 0:05:28]} Qe4 {[%emt 0:05:22] And now ...c5 would win.} 25. Qg3 {[%emt 0:25:06]} c5 {[%emt 0:13:26]} (25... gxf6 $6 26. Bxf6 Qg6 27. Bxg5 hxg5 28. Rxf8+ Rxf8 29. b3 $11) 26. Re1 {[%emt 0:01:29]} Qg6 {[%emt 0:01:46]} 27. fxg7 {[%emt 0:04:28]} Rxe1+ {[%emt 0:07:52]} 28. Rxe1 {[%emt 0:00:25]} Re8 {[%emt 0:00:09]} 29. Rxe8+ {[%emt 0:08:06]} (29. Be3 $1 $15) 29... Qxe8 {[%emt 0:00:07][%mdl 4096] Endgame KQB-KQB} 30. Bf2 {[%emt 0:00:07]} Qe4 {[%emt 0:03:34]} 31. a3 {[%emt 0:00:30]} Qd5 {[%emt 0:01:44]} (31... Qh1+ $17 32. Bg1 Kxg7) 32. Qg4 $11 {[%emt 0:00:59]} Kxg7 {[%emt 0:00:44]} 33. c4 {[%emt 0:04:31]} Qf7 {[%emt 0:01:46]} 34. Bg3 {[%emt 0:02:01]} d5 {[%emt 0:00:37] Hoping for ...Qf1+.} 35. Be5+ {[%emt 0:03:53]} Kg6 {[%emt 0:00:33] ...Qf1+ is the strong threat.} (35... Kh7 36. cxd5 Kg6 37. Qd1 $14) 36. cxd5 {[%emt 0:00:11]} (36. Qe2 $1 $11 {keeps the balance.}) 36... Qxd5 $17 {[%emt 0:00:26]} 37. Bc3 {[%emt 0:00:04]} h5 {[%emt 0:00:57]} 38. Qc8 {[%emt 0:00:29]} h4 {[%emt 0:00:32]} 39. Qe8+ {[%emt 0:00:55]} Kf5 {[%emt 0:00:17]} 40. Qc8+ {[%emt 0:02:26]} Kg6 {[%emt 0:01:13]} (40... Kf4 $17 41. Qe8 h3) 41. Qe8+ $1 $15 {[%emt 0:30:38]} Kf5 {[%emt 0:01:06]} (41... Qf7 $15 42. Qe4+ (42. Qe5 Qf1+ 43. Ka2 Qf5 $17) 42... Kh6) 42. Qc8+ $1 $17 {[%emt 0:00:00]} Kf4 {[%emt 0:07:13]} 43. Ba5 {[%emt 0:00:00]} Kg3 {[%emt 0:02:31]} 44. Be1+ {[%emt 0:00:00]} (44. Bc7+ $17 Bf4 45. Bxf4+ Kxf4 46. Qh3) 44... Kh2 $1 $19 {[%emt 0:06:06]} 45. Qg4 {[%emt 0:00:00] Against Qd1+} Qg2 $1 {[%emt 0:00:29]} 46. Qe6 {[%emt 0:00:00]} h3 {[%emt 0:02:09] White must now prevent ...Kg1.} 47. Qe5+ {[%emt 0:00:00]} Kh1 {[%emt 0:00:22]} 48. Ka2 {[%emt 0:00:00]} c4 {[%emt 0:07:35]} (48... Bc1 $19 {and Black stays clearly on top.} 49. Bh4 Qf3) 49. Bb4 $17 {[%emt 0:01:20]} Bh4 {[%emt 0:01:21] Against Qe1+. aiming for ...Bg3.} ({But not} 49... Qxc2 $6 50. Qd5+ Qg2 51. Qd1+ Qg1 52. Qd5+ Qg2 53. Qd1+ Qg1 54. Qd5+ Qg2 $11) ({Don't play} 49... h2 $6 50. Qe1+ Qg1 51. Qe4+ Qg2 52. Qe1+ Qg1 53. Qe4+ Qg2 54. Qe1+ $11) 50. Qd4 {[%emt 0:02:32]} (50. Bd6 $17 {keeps fighting.}) 50... Bf2 $19 {[%emt 0:01:12]} ({Weaker is} 50... Qxc2 51. Qxh4 Qb3+ 52. Kb1 Qd1+ 53. Ka2 Qb3+ 54. Kb1 Qd1+ 55. Ka2 $11) 51. Qxc4 {[%emt 0:01:09]} h2 $2 {[%emt 0:02:16]} (51... Kg1 $1 $19 {Threatens to win with ...h2.} 52. Bd6 h2 53. Bxh2+ Kxh2 54. Qf4+ Qg3) 52. Bd6 {[%emt 0:00:03] [#]} (52. Qd3 $1 $15) 52... Be3 $2 {[%emt 0:02:39]} ({Black should try} 52... Kg1 $1 $19 53. Bxh2+ Kxh2 54. Qf4+ Qg3) 53. Qd3 $11 {[%emt 0:02:06]} Qf3 {[%emt 0:00:43] Strongly threatening ...Kg1.} 54. b3 $2 {[%emt 0:00:19][%mdl 8192]} (54. c4 $11) 54... Kg2 {[%emt 0:01:16]} 55. Qg6+ {[%emt 0:00:08]} Kh1 {[%emt 0:00:15]} 56. Qd3 $1 {[%emt 0:00:44] [#]} Kg2 $2 {[%emt 0:00:18]} (56... Kg1 $1 $19 57. Qg6+ Qg2 58. Bxh2+ Kxh2) 57. Qg6+ {[%emt 0:00:08]} Kh1 {[%emt 0:00:03] Whites escaped into a draw.  Weighted Error Value: White=0.30/Black=0.39} 1/2-1/2

[Event "55th Biel Festival MTO 2022"]
[Site "Biel"]
[Date "2022.07.19"]
[Round "6.32"]
[White "Schnepp Gunnar"]
[Black "Meduri, Aakaash"]
[Result "1-0"]
[ECO "D31"]
[WhiteElo "2265"]
[BlackElo "2000"]
[Annotator "TA"]
[PlyCount "49"]
[EventDate "2022.07.13"]
[EventType "swiss"]
[EventCountry "SUI"]
[SourceTitle "playchess.com"]
[Source "ChessBase"]
[SourceQuality "1"]
[TimeControl "40/5400+30:1800+30"]

{[%evp 16,49,0,0,0,0,2,11,265,249,310,296,444,442,410,325,325,326,310,333,328,329,311,301,471,468,724,715,996,976,966,679,1129,1080,29988,29989]} 1. d4 {[%emt 0:00:05]} d5 {[%emt 0:00:13]} 2. c4 {[%emt 0:00:13]} e6 {[%emt 0:00:25]} 3. Nc3 {[%emt 0:00:31]} c6 {[%emt 0:00:12]} 4. e4 {[%emt 0:00:48]} dxe4 {[%emt 0:00:20]} 5. Nxe4 {[%emt 0:00:03]} Bb4+ {[%emt 0:00:15]} 6. Bd2 {[%emt 0:00:04][%cal Bc1d2,Bd2b4,Bb4d6,Bd6e5][%mdl 32]} Qxd4 {[%emt 0:00:30]} 7. Bxb4 {[%emt 0:00:03]} Qxe4+ {[%emt 0:00:19]} 8. Be2 {[%emt 0:00:03]} Na6 {[%emt 0:01:01]} 9. Bd6 {[%emt 0:00:06] And now Nf3 would win.} Qxg2 {[%emt 0:11:10] D31: Queen's Gambit Declined: Semi-Slav without ...Nf6 (+ Marshall Gambit and Noteboom) and Exchange Variation lines without ...Nf6.} 10. Qd2 {[%emt 0:00:49]} e5 {[%emt 0:13:56]} (10... Qxh1 $2 11. O-O-O e5 12. Bxe5 $18) 11. O-O-O {[%emt 0:04:36]} (11. Bf3 Qg6 12. Bxe5 Qe6 $15) 11... Be6 $2 {[%emt 0:10:44][%mdl 8192] [#]} (11... Qxh1 $2 12. Bxe5 Bf5 13. Bf3 $18) (11... Qe4 $1 $11 {and Black has nothing to worry.}) 12. Bxe5 $1 $40 {[%emt 0:14:40][%mdl 128] Hoping for Nf3. White wants a kill. This bishop pair is nice.} Ne7 {[%emt 0:23:05] [#]} (12... Qxh1 $2 13. Bf3 (13. Bxg7 Qe4 $14) 13... Qxg1 14. Rxg1 $18) (12... Nf6 13. Nf3) 13. Nf3 $146 {[%emt 0:17:25]} ({Predecessor:} 13. Bf3 Qg6 14. Ne2 Qf5 15. Bxg7 Rg8 16. Nd4 Qh3 17. Nxe6 fxe6 18. Qe3 Qf5 19. Rhg1 {1-0 (45) Fernandez,M (2159)-Martinez,A (2195) Ushuaia 2018}) 13... Nf5 {[%emt 0:16:24]} (13... Qg6 {was necessary.} 14. Nh4 Qe4) 14. Ng5 {[%emt 0:06:24]} ({Weaker is} 14. Rhg1 Qxf2 15. Ng5 (15. Bxg7 Nxg7 16. Rxg7 h6 $16) 15... Nc5 16. Nxe6 Nxe6 $18) 14... Nc5 {[%emt 0:07:33]} (14... O-O $2 15. Bf3 Qxg5 16. Qxg5 $18) 15. Bf3 {[%emt 0:04:10][%cal Be2f3,Bf3e4,Be4d3][%mdl 32] Against Ne4} Nd3+ {[%emt 0:00:35]} 16. Kb1 {[%emt 0:00:20]} Qxg5 {[%emt 0:03:29]} 17. Qxg5 {[%emt 0:00:58]} Nxe5 {[%emt 0:00:11]} 18. Be4 {[%emt 0:06:01]} f6 {[%emt 0:01:51]} 19. Qf4 {[%emt 0:01:33]} ({Not} 19. Bxf5 fxg5 20. Bxe6 Ke7 $17) 19... g5 {[%emt 0:00:43]} (19... g6 $142 20. b3 O-O) 20. Qc1 {[%emt 0:00:52]} ({And not} 20. Bxf5 gxf4 21. Bxe6 Rd8 $17) 20... Ne7 {[%emt 0:04:19]} (20... Nd7 $142 21. f4 g4) 21. f4 {[%emt 0:02:25][%cal Bf2f4,Bf4g5][%mdl 32]} Nxc4 {[%emt 0:00:46]} 22. fxg5 {[%emt 0:00:48]} f5 {[%emt 0:00:44]} 23. Bd3 {[%emt 0:00:29]} Nb6 {[%emt 0:01:17]} 24. Rhe1 {[%emt 0:00:22]} Kf7 {[%emt 0:00:17]} 25. Qe3 {[%emt 0:00:33] White took control after the opening.  Weighted Error Value: White=0.23 (precise) /Black=1.20} 1-0

[Event "55th Biel Festival MTO 2022"]
[Site "Biel"]
[Date "2022.07.19"]
[Round "6.33"]
[White "Shubin Daniel"]
[Black "Kolbus Dietmar"]
[Result "1-0"]
[ECO "B98"]
[WhiteElo "2120"]
[BlackElo "2285"]
[Annotator "TA"]
[PlyCount "47"]
[EventDate "2022.07.13"]
[EventType "swiss"]
[EventCountry "SUI"]
[SourceTitle "playchess.com"]
[Source "ChessBase"]
[SourceQuality "1"]
[TimeControl "40/5400+30:1800+30"]

{[%evp 19,47,27,75,17,14,30,41,34,32,41,43,-32,-25,-121,-140,-157,1368,1331,29986,29987,29987,29988,29988,29989,29993,29994,29994,29995,29995,29996]} 1. e4 {[%emt 0:00:04]} c5 {[%emt 0:00:09]} 2. Nf3 {[%emt 0:00:08]} d6 {[%emt 0:00:34]} 3. d4 {[%emt 0:00:05]} cxd4 {[%emt 0:00:07]} 4. Nxd4 {[%emt 0:00:04]} Nf6 {[%emt 0:00:08]} 5. Nc3 {[%emt 0:00:02]} a6 {[%emt 0:00:24]} 6. Bg5 {[%emt 0:00:34]} Nbd7 {[%emt 0:00:58]} 7. f4 {[%emt 0:00:00]} Qc7 {[%emt 0:01:09]} 8. Qe2 {[%emt 0:01:24]} e6 {[%emt 0:08:24][%cal Be7e6,Be6e5,Be5f4][%mdl 32]} 9. O-O-O {[%emt 0:02:53]} Be7 {[%emt 0:00:50]} 10. g4 {[%emt 0:01:58][%cal Bg2g4,Bg4g5][%mdl 32]} O-O {[%emt 0:12:11]} (10... b5 $11 {feels stronger.}) 11. Bxf6 {[%emt 0:06:49] White is more active. B98: Sicilian Najdorf: 6 Bg5 e6 7 f4 Be7, sidelines.} (11. Bg2 $16) 11... Bxf6 $11 {[%emt 0:02:05]} 12. g5 {[%emt 0:00:06]} Bxd4 {[%emt 0:01:39]} 13. Rxd4 {[%emt 0:00:06] White is slightly better.} e5 {[%emt 0:00:56] [#]} 14. Nd5 $146 {[%emt 0:16:38]} ({Predecessor:} 14. Rc4 Qd8 15. f5 Qxg5+ 16. Kb1 Nf6 17. h4 Qh6 18. Qd3 b5 19. Rc7 Rb8 20. a4 {0-1 (27) Bordonada,G (2365)-Ardiansyah,H (2380) Manila 1979}) 14... Qd8 {[%emt 0:00:21]} 15. Rd3 {[%emt 0:11:51]} ({White should play} 15. Rd2 $1 $14) 15... exf4 $15 {[%emt 0:05:51]} 16. Qh5 {[%emt 0:02:29]} (16. Qf2 $11 {keeps the balance.}) 16... Ne5 $17 {[%emt 0:01:16]} 17. Rg1 {[%emt 0:01:36][%cal Od5f6] Prevents Bg4. Threatens to win with Nf6+!} Be6 $2 {[%emt 0:12:47] [#] Loses the game.} ({Stronger than} 17... Nxd3+ 18. Bxd3 Kh8 19. e5 $11) (17... Kh8 $17 18. a3 f3 19. Rxf3 Nxf3 20. Qxf3 Qa5) 18. Nf6+ $1 $18 {[%emt 0:09:53][%mdl 512]} gxf6 {[%emt 0:00:18]} (18... Qxf6 19. gxf6) 19. gxf6+ {[%emt 0:00:04] White mates.} Ng6 {[%emt 0:00:14]} 20. e5 $1 {[%emt 0:00:15]} Kh8 {[%emt 0:02:06] [#]} 21. Rg5 $1 {[%emt 0:02:26]} Qa5 {[%emt 0:18:11]} 22. Qh6 {[%emt 0:00:59][%csl Gf6][%cal Rh6g7]} Qe1+ {[%emt 0:04:38]} 23. Rd1 {[%emt 0:00:27][%csl Gf6][%cal Rh6g7]} Qe3+ {[%emt 0:03:00]} 24. Kb1 {[%emt 0:00:04] Weighted Error Value: White=0.29 (precise) /Black=0.36} 1-0